Workbook

Sheet Contabilidad Mensual
H1: CONTABILIDAD MENSUAL
C2: TABLA 1 | D2: AÑO 2013
C4: MES | D4: SALDO al 30/31 | G4: INGRESOS | H4: CONCEPTO | I4: INGRESOS | K4: SALDO | M4: GASTOS | N4: CONCEPTO | O4: BALANCE
D5: del mes anterior | H5: Ingresos | I5: Totales | K5: Mensual | M5: Totales | N5: Gastos | O5: Ahorro
D7: Diciembre | F7: 1. | G7: 1123 | H7: Ej: Nómina Diciembre. | N7: Ej: Extra en reparación del coche
C8: ENERO | D8: 1289 | F8: 2. | G8: 6.87 | H8: Ej: Intereses trimestrales a favor | I8: =IF(SUM(G7:G9),SUM(G7:G9),"") -> 1129.87 | K8: =IFERROR(D8+I8,"") -> 2418.87 | M8: =IFERROR(D12-K8,"") -> -1039.87 | N8: Ej: Gastos maturales de Enero | O8: =IFERROR(D12-D8,"") -> 90
F9: 3.
D11: Enero | F11: 1. | G11: Introducir | H11: Introducir | N11: Introducir
C12: FEBRERO | D12: 1379 | F12: 2. | G12: Introducir | H12: Introducir | I12: =IF(SUM(G11:G13),SUM(G11:G13),"") ->  | K12: =IFERROR(D12+I12,"") ->  | M12: =IFERROR(D16-K12,"") ->  | N12: Introducir | O12: =IFERROR(D16-D12,"") -> 
F13: 3. | G13: Introducir | H13: Introducir | N13: Introducir
D15: Febrero | F15: 1. | G15: Introducir | H15: Introducir | N15: Introducir
C16: MARZO | D16: ¿ ? | F16: 2. | G16: Introducir | H16: Introducir | I16: =IF(SUM(G15:G17),SUM(G15:G17),"") ->  | K16: =IFERROR(D16+I16,"") ->  | M16: =IFERROR(D20-K16,"") ->  | N16: Introducir | O16: =IFERROR(D20-D16,"") -> 
F17: 3. | G17: Introducir | H17: Introducir | N17: Introducir
D19: Marzo | F19: 1. | G19: Introducir | H19: introducir | N19: Introducir
C20: ABRIL | D20: ¿ ? | F20: 2. | G20: Introducir | H20: introducir | I20: =IF(SUM(G19:G21),SUM(G19:G21),"") ->  | K20: =IFERROR(D20+I20,"") ->  | M20: =IFERROR(D24-K20,"") ->  | N20: Introducir | O20: =IFERROR(D24-D20,"") -> 
F21: 3. | G21: Introducir | H21: introducir | N21: Introducir
D23: Abril | F23: 1. | G23: Introducir | H23: Introducir | N23: Introducir
C24: MAYO | D24: ¿ ? | F24: 2. | G24: Introducir | H24: Introducir | I24: =IF(SUM(G23:G25),SUM(G23:G25),"") ->  | K24: =IFERROR(D24+I24,"") ->  | M24: =IFERROR(D28-K24,"") ->  | N24: Introducir | O24: =IFERROR(D28-D24,"") -> 
F25: 3. | G25: Introducir | H25: Introducir | N25: Introducir
D27: Mayo | F27: 1. | G27: Introducir | H27: Introducir | N27: Introducir
C28: JUNIO | D28: ¿ ? | F28: 2. | G28: Introducir | H28: Introducir | I28: =IF(SUM(G27:G29),SUM(G27:G29),"") ->  | K28: =IFERROR(D28+I28,"") ->  | M28: =IFERROR(D32-K28,"") ->  | N28: Introducir | O28: =IFERROR(D32-D28,"") -> 
F29: 3. | G29: Introducir | H29: Introducir | N29: Introducir
D31: Junio | F31: 1. | G31: Introducir | H31: Introducir | N31: Introducir
C32: JULIO | D32: ¿ ? | F32: 2. | G32: Introducir | H32: Introducir | I32: =IF(SUM(G31:G33),SUM(G31:G33),"") ->  | K32: =IFERROR(D32+I32,"") ->  | M32: =IFERROR(D36-K32,"") ->  | N32: Introducir | O32: =IFERROR(D36-D32,"") -> 
F33: 3. | G33: Introducir | H33: Introducir | N33: Introducir
D35: Julio | F35: 1. | G35: Introducir | H35: Introducir | N35: Introducir
C36: AGOSTO | D36: ¿ ? | F36: 2. | G36: Introducir | H36: Introducir | I36: =IF(SUM(G35:G37),SUM(G35:G37),"") ->  | K36: =IFERROR(D36+I36,"") ->  | M36: =IFERROR(D40-K36,"") ->  | N36: Introducir | O36: =IFERROR(D40-D36,"") -> 
F37: 3. | G37: Introducir | H37: Introducir | N37: Introducir
D39: Agosto | F39: 1. | G39: Introducir | H39: Introducir | N39: Introducir
C40: SEPTIEMBRE | D40: ¿ ? | F40: 2. | G40: Introducir | H40: Introducir | I40: =IF(SUM(G39:G41),SUM(G39:G41),"") ->  | K40: =IFERROR(D40+I40,"") ->  | M40: =IFERROR(D44-K40,"") ->  | N40: Introducir | O40: =IFERROR(D44-D40,"") -> 
F41: 3. | G41: Introducir | H41: Introducir | N41: Introducir
D43: Septiembre | F43: 1. | G43: Introducir | H43: Introducir | N43: Introducir
C44: OCTUBRE | D44: ¿ ? | F44: 2. | G44: Introducir | H44: Introducir | I44: =IF(SUM(G43:G45),SUM(G43:G45),"") ->  | K44: =IFERROR(D44+I44,"") ->  | M44: =IFERROR(D48-K44,"") ->  | N44: Introducir | O44: =IFERROR(D48-D44,"") -> 
F45: 3. | G45: Introducir | H45: Introducir | N45: Introducir
D47: Octubre | F47: 1. | G47: Introducir | H47: Introducir | N47: Introducir
C48: NOVIEMBRE | D48: ¿ ? | F48: 2. | G48: Introducir | H48: Introducir | I48: =IF(SUM(G47:G49),SUM(G47:G49),"") ->  | K48: =IFERROR(D48+I48,"") ->  | M48: =IFERROR(D52-K48,"") ->  | N48: Introducir | O48: =IFERROR(D52-D48,"") -> 
F49: 3. | G49: Introducir | H49: Introducir | N49: Introducir
D51: Noviembre | F51: 1. | G51: Introducir | H51: Introducir | N51: Introducir
C52: DICIEMBRE | D52: ¿ ? | F52: 2. | G52: Introducir | H52: Introducir | I52: =IF(SUM(G51:G53),SUM(G51:G53),"") ->  | K52: =IFERROR(D52+I52,"") ->  | M52: =IFERROR(D60-K52,"") ->  | N52: Introducir | O52: =IFERROR(D60-D52,"") -> 
F53: 3. | G53: Introducir | H53: Introducir | N53: Introducir
C55: TABLA 2 | D55: AÑO 2014
C56: MES | D56: SALDO al 30/31 | G56: INGRESOS | H56: CONCEPTO | I56: TOTAL | K56: SALDO | M56: GASTOS | N56: CONCEPTO | O56: BALANCE
D57: del mes anterior | H57: Ingresos | I57: Ingresos | K57: Mensual | N57: Gasto | O57: Mensual
D59: Diciembre | F59: 1. | G59: Introducir | H59: Introducir | N59: Introducir
C60: ENERO | D60: ¿ ? | F60: 2. | G60: Introducir | H60: Introducir | I60: =IF(SUM(G59:G61),SUM(G59:G61),"") ->  | K60: =IFERROR(D60+I60,"") ->  | M60: =IFERROR(D64-K60,"") ->  | N60: Introducir | O60: =IFERROR(D64-D60,"") -> 
F61: 3. | G61: Introducir | H61: Introducir | N61: Introducir
D63: Enero | F63: 1. | G63: Introducir | H63: Introducir | N63: Introducir
C64: FEBRERO | D64: ¿ ? | F64: 2. | G64: Introducir | H64: Introducir | I64: =IF(SUM(G63:G65),SUM(G63:G65),"") ->  | K64: =IFERROR(D64+I64,"") ->  | M64: =IFERROR(D68-K64,"") ->  | N64: Introducir | O64: =IFERROR(D68-D64,"") -> 
F65: 3. | G65: Introducir | H65: Introducir | N65: Introducir
D67: Febrero | F67: 1. | G67: introducir | H67: Introducir | N67: Introducir
C68: MARZO | D68: ¿ ? | F68: 2. | G68: introducir | H68: Introducir | I68: =IF(SUM(G67:G69),SUM(G67:G69),"") ->  | K68: =IFERROR(D68+I68,"") ->  | M68: =IFERROR(D72-K68,"") ->  | N68: Introducir | O68: =IFERROR(D72-D68,"") -> 
F69: 3. | G69: introducir | H69: Introducir | N69: Introducir
D71: Marzo | F71: 1. | G71: Introducir | H71: Introducir | N71: Introducir
C72: ABRIL | D72: ¿ ? | F72: 2. | G72: Introducir | H72: Introducir | I72: =IF(SUM(G71:G73),SUM(G71:G73),"") ->  | K72: =IFERROR(D72+I72,"") ->  | M72: =IFERROR(D76-K72,"") ->  | N72: Introducir | O72: =IFERROR(D76-D72,"") -> 
F73: 3. | G73: Introducir | H73: Introducir | N73: Introducir
D75: Abril | F75: 1. | G75: Introducir | H75: Introducir | N75: Introducir
C76: MAYO | D76: ¿ ? | F76: 2. | G76: Introducir | H76: Introducir | I76: =IF(SUM(G75:G77),SUM(G75:G77),"") ->  | K76: =IFERROR(D76+I76,"") ->  | M76: =IFERROR(D80-K76,"") ->  | N76: Introducir | O76: =IFERROR(D80-D76,"") -> 
F77: 3. | G77: Introducir | H77: Introducir | N77: Introducir
D79: Mayo | F79: 1. | G79: Introducir | H79: Introducir | N79: Introducir
C80: JUNIO | D80: ¿ ? | F80: 2. | G80: Introducir | H80: Introducir | I80: =IF(SUM(G79:G81),SUM(G79:G81),"") ->  | K80: =IFERROR(D80+I80,"") ->  | M80: =IFERROR(D84-K80,"") ->  | N80: Introducir | O80: =IFERROR(D84-D80,"") -> 
F81: 3. | G81: Introducir | H81: Introducir | N81: Introducir
D83: Junio | F83: 1. | G83: Introducir | H83: Introducir | N83: Introducir
C84: JULIO | D84: ¿ ? | F84: 2. | G84: Introducir | H84: Introducir | I84: =IF(SUM(G83:G85),SUM(G83:G85),"") ->  | K84: =IFERROR(D84+I84,"") ->  | M84: =IFERROR(D88-K84,"") ->  | N84: Introducir | O84: =IFERROR(D88-D84,"") -> 
F85: 3. | G85: Introducir | H85: Introducir | N85: Introducir
D87: Julio | F87: 1. | G87: Introducir | H87: Introducir | N87: Introducir
C88: AGOSTO | D88: ¿ ? | F88: 2. | G88: Introducir | H88: Introducir | I88: =IF(SUM(G87:G89),SUM(G87:G89),"") ->  | K88: =IFERROR(D88+I88,"") ->  | M88: =IFERROR(D92-K88,"") ->  | N88: Introducir | O88: =IFERROR(D92-D88,"") -> 
F89: 3. | G89: Introducir | H89: Introducir | N89: Introducir
D91: Agosto | F91: 1. | G91: Introducir | H91: Introducir | N91: Introducir
C92: SEPTIEMBRE | D92: ¿ ? | F92: 2. | G92: Introducir | H92: Introducir | I92: =IF(SUM(G91:G93),SUM(G91:G93),"") ->  | K92: =IFERROR(D92+I92,"") ->  | M92: =IFERROR(D96-K92,"") ->  | N92: Introducir | O92: =IFERROR(D96-D92,"") -> 
F93: 3. | G93: Introducir | H93: Introducir | N93: Introducir
D95: Septiembre | F95: 1. | G95: Introducir | H95: Introducir | N95: Introducir
C96: OCTUBRE | D96: ¿ ? | F96: 2. | G96: Introducir | H96: Introducir | I96: =IF(SUM(G95:G97),SUM(G95:G97),"") ->  | K96: =IFERROR(D96+I96,"") ->  | M96: =IFERROR(D100-K96,"") ->  | N96: Introducir | O96: =IFERROR(D100-D96,"") -> 
F97: 3. | G97: Introducir | H97: Introducir | N97: Introducir
D99: Octubre | F99: 1. | G99: Introducir | H99: Introducir | N99: Introducir
C100: NOVIEMBRE | D100: ¿ ? | F100: 2. | G100: Introducir | H100: Introducir | I100: =IF(SUM(G99:G101),SUM(G99:G101),"") ->  | K100: =IFERROR(D100+I100,"") ->  | M100: =IFERROR(D104-K100,"") ->  | N100: Introducir | O100: =IFERROR(D104-D100,"") -> 
F101: 3. | G101: Introducir | H101: Introducir | N101: Introducir
D103: Noviembre | F103: 1. | G103: Introducir | H103: Introducir | N103: Introducir
C104: DICIEMBRE | D104: ¿ ? | F104: 2. | G104: Introducir | H104: Introducir | I104: =IF(SUM(G103:G105),SUM(G103:G105),"") ->  | K104: =IFERROR(D104+I104,"") ->  | M104: =IFERROR(D112-K104,"") ->  | N104: Introducir | O104: =IFERROR(D112-D104,"") -> 
F105: 3. | G105: Introducir | H105: Introducir | N105: Introducir
C107: Año Siguiente
C108: MES | D108: SALDO al 30/31
D109: del mes anterior
D111: Diciembre
C112: ENERO | D112: ¿ ? | G112: (Edición Manual)
M114: contafacil2013.wordpress.com

Sheet Detalle Gastos
J1: DETALLE DE GASTOS
C2: 1 | D2: AÑO 2013
J3: MENSUALIDADES | S3: MEDIA | T3: % | U3: TOTAL
D4: CONCEPTOS | F4: ENE. | G4: FEB. | H4: MAR. | I4: ABR. | J4: MAY. | K4: JUN. | L4: JUL. | M4: AGO. | N4: SEP. | O4: OCT. | P4: NOV. | Q4: DIC. | S4: MENSUAL | T4: TOTAL | U4: ANUAL
C6: 1. | D6: Ej: Recibo Agua | F6: 67.87 | S6: =IFERROR(AVERAGE(F6:Q6),"") -> 67.87 | T6: =IFERROR((U6/U57),"") -> 0.1866714341 | U6: =IF(SUM(F6:Q6),SUM(F6:Q6),"") -> 67.87
C8: 2. | D8: Ej: Recibo de Luz | F8: 91.13 | S8: =IFERROR(AVERAGE(F8:Q8),"") -> 91.13 | T8: =IFERROR((U8/U57),"") -> 0.2506463502 | U8: =IF(SUM(F8:Q8),SUM(F8:Q8),"") -> 91.13
C10: 3. | D10: Ej: Telefonía | F10: 36.78 | S10: =IFERROR(AVERAGE(F10:Q10),"") -> 36.78 | T10: =IFERROR((U10/U57),"") -> 0.1011606799 | U10: =IF(SUM(F10:Q10),SUM(F10:Q10),"") -> 36.78
C12: 4. | D12: Ej: Gas | F12: 0 | S12: =IFERROR(AVERAGE(F12:Q12),"") -> 0 | T12: =IFERROR((U12/U57),"") -> 
C14: 5. | S14: =IFERROR(AVERAGE(F14:Q14),"") ->  | T14: =IFERROR((U14/U57),"") -> 
C16: 6. | S16: =IFERROR(AVERAGE(F16:Q16),"") ->  | T16: =IFERROR((U16/U57),"") -> 
C18: 7. | S18: =IFERROR(AVERAGE(F18:Q18),"") ->  | T18: =IFERROR((U18/U57),"") -> 
C20: 8. | S20: =IFERROR(AVERAGE(F20:Q20),"") ->  | T20: =IFERROR((U20/U57),"") -> 
C22: 9. | S22: =IFERROR(AVERAGE(F22:Q22),"") ->  | T22: =IFERROR((U22/U57),"") -> 
C24: 10. | S24: =IFERROR(AVERAGE(F24:Q24),"") ->  | T24: =IFERROR((U24/U57),"") -> 
C26: 11. | S26: =IFERROR(AVERAGE(F26:Q26),"") ->  | T26: =IFERROR((U26/U57),"") -> 
C28: 12. | S28: =IFERROR(AVERAGE(F28:Q28),"") ->  | T28: =IFERROR((U28/U57),"") -> 
C30: 13. | S30: =IFERROR(AVERAGE(F30:Q30),"") ->  | T30: =IFERROR((U30/U57),"") -> 
C32: 14. | S32: =IFERROR(AVERAGE(F32:Q32),"") ->  | T32: =IFERROR((U32/U57),"") -> 
C34: 15. | D34: TOTAL GTOS. EXTRA | F34: =IF(SUM(F37:F55),SUM(F37:F55),"") -> 167.8 | G34: =IF(SUM(G37:G55),SUM(G37:G55),"") ->  | S34: =IFERROR(AVERAGE(F34:Q34),"") -> 167.8 | T34: =IFERROR((U34/U57),"") -> 0.4615215358 | U34: =IF(SUM(F34:Q34),SUM(F34:Q34),"") -> 167.8
D36: TIPOS DE GASTO
C37: 1. | D37: Ej: Compra música | F37: 19 | S37: =IFERROR(AVERAGE(F37:Q37),"") -> 19 | T37: =IFERROR((U37/U57),"") -> 0.05225810001 | U37: =IF(SUM(F37:Q37),SUM(F37:Q37),"") -> 19
C39: 2. | D39: Ej: Ropa | F39: 42.8 | S39: =IFERROR(AVERAGE(F39:Q39),"") -> 42.8 | T39: =IFERROR((U39/U57),"") -> 0.1177182463 | U39: =IF(SUM(F39:Q39),SUM(F39:Q39),"") -> 42.8
C41: 3. | D41: Ej: Ocio | F41: 30 | S41: =IFERROR(AVERAGE(F41:Q41),"") -> 30 | T41: =IFERROR((U41/U57),"") -> 0.08251278948 | U41: 30
C43: 4. | D43: Ej: Reparaciones | F43: 76 | S43: 76 | T43: =IFERROR((U43/U57),"") -> 0.2090324 | U43: 76
C45: 5. | T45: =IFERROR((U45/U57),"") -> 
C47: 6. | T47: =IFERROR((U47/U57),"") -> 
C49: 7. | T49: =IFERROR((U49/U57),"") -> 
C51: 8. | T51: =IFERROR((U51/U57),"") -> 
C53: 9. | T53: =IFERROR((U53/U57),"") -> 
C55: 10. | T55: =IFERROR((U55/U57),"") -> 
C57: TOTAL GASTOS | F57: =IF(SUM(F6:F34),SUM(F6:F34),"") -> 363.58 | G57: =IF(SUM(G6:G34),SUM(G6:G34),"") ->  | S57: =IFERROR(AVERAGEIF(F57:Q57,">0"),"") -> 363.58 | U57: =IF(SUM(U6:U34),SUM(U6:U34),"") -> 363.58
C60: 2 | D60: AÑO 2014
J61: MENSUALIDADES | S61: MEDIA | T61: % | U61: TOTAL
D62: CONCEPTOS | F62: ENE. | G62: FEB. | H62: MAR. | I62: ABR. | J62: MAY. | K62: JUN. | L62: JUL. | M62: AGO. | N62: SEP. | O62: OCT. | P62: NOV. | Q62: DIC. | S62: MENSUAL | T62: TOTAL | U62: ANUAL
C64: 1. | S64: =IFERROR(AVERAGE(F64:Q64),"") ->  | T64: =IFERROR((U64/U115),"") ->  | U64: =IF(SUM(F64:Q64),SUM(F64:Q64),"") -> 
C66: 2. | S66: =IFERROR(AVERAGE(F66:Q66),"") ->  | T66: =IFERROR((U66/U115),"") ->  | U66: =IF(SUM(F66:Q66),SUM(F66:Q66),"") -> 
C68: 3. | S68: =IFERROR(AVERAGE(F68:Q68),"") ->  | T68: =IFERROR((U68/U115),"") -> 
C70: 4. | S70: =IFERROR(AVERAGE(F70:Q70),"") ->  | T70: =IFERROR((U70/U115),"") -> 
C72: 5. | S72: =IFERROR(AVERAGE(F72:Q72),"") ->  | T72: =IFERROR((U72/U115),"") -> 
C74: 6. | S74: =IFERROR(AVERAGE(F74:Q74),"") ->  | T74: =IFERROR((U74/U115),"") -> 
C76: 7. | S76: =IFERROR(AVERAGE(F76:Q76),"") ->  | T76: =IFERROR((U76/U115),"") -> 
C78: 8. | S78: =IFERROR(AVERAGE(F78:Q78),"") ->  | T78: =IFERROR((U78/U115),"") -> 
C80: 9. | S80: =IFERROR(AVERAGE(F80:Q80),"") ->  | T80: =IFERROR((U80/U115),"") -> 
C82: 10. | S82: =IFERROR(AVERAGE(F82:Q82),"") ->  | T82: =IFERROR((U82/U115),"") -> 
C84: 11. | S84: =IFERROR(AVERAGE(F84:Q84),"") ->  | T84: =IFERROR((U84/U115),"") -> 
C86: 12. | S86: =IFERROR(AVERAGE(F86:Q86),"") ->  | T86: =IFERROR((U86/U115),"") -> 
C88: 13. | S88: =IFERROR(AVERAGE(F88:Q88),"") ->  | T88: =IFERROR((U88/U115),"") -> 
C90: 14. | S90: =IFERROR(AVERAGE(F90:Q90),"") ->  | T90: =IFERROR((U90/U115),"") -> 
C92: 15. | D92: TOTAL GTOS. EXTRA | F92: =IF(SUM(F95:F113),SUM(F95:F113),"") ->  | G92: =IF(SUM(G95:G113),SUM(G95:G113),"") ->  | S92: =IFERROR(AVERAGE(F92:Q92),"") ->  | T92: =IFERROR((U92/U115),"") ->  | U92: =IF(SUM(F92:Q92),SUM(F92:Q92),"") -> 
D94: TIPOS DE GASTO
C95: 1. | S95: =IFERROR(AVERAGE(F95:Q95),"") ->  | T95: =IFERROR((U95/U115),"") ->  | U95: =IF(SUM(F95:Q95),SUM(F95:Q95),"") -> 
C97: 2. | S97: =IFERROR(AVERAGE(F97:Q97),"") ->  | T97: =IFERROR((U97/U115),"") ->  | U97: =IF(SUM(F97:Q97),SUM(F97:Q97),"") -> 
C99: 3. | S99: =IFERROR(AVERAGE(F99:Q99),"") ->  | T99: =IFERROR((U99/U115),"") ->  | U99: =IF(SUM(F99:Q99),SUM(F99:Q99),"") -> 
C101: 4. | S101: =IFERROR(AVERAGE(F101:Q101),"") ->  | T101: =IFERROR((U101/U115),"") ->  | U101: =IF(SUM(F101:Q101),SUM(F101:Q101),"") -> 
C103: 5. | S103: =IFERROR(AVERAGE(F103:Q103),"") ->  | T103: =IFERROR((U103/U115),"") ->  | U103: =IF(SUM(F103:Q103),SUM(F103:Q103),"") -> 
C105: 6. | S105: =IFERROR(AVERAGE(F105:Q105),"") ->  | T105: =IFERROR((U105/U115),"") ->  | U105: =IF(SUM(F105:Q105),SUM(F105:Q105),"") -> 
C107: 7. | S107: =IFERROR(AVERAGE(F107:Q107),"") ->  | T107: =IFERROR((U107/U115),"") ->  | U107: =IF(SUM(F107:Q107),SUM(F107:Q107),"") -> 
C109: 8. | S109: =IFERROR(AVERAGE(F109:Q109),"") ->  | T109: =IFERROR((U109/U115),"") ->  | U109: =IF(SUM(F109:Q109),SUM(F109:Q109),"") -> 
C111: 9. | S111: =IFERROR(AVERAGE(F111:Q111),"") ->  | T111: =IFERROR((U111/U115),"") ->  | U111: =IF(SUM(F111:Q111),SUM(F111:Q111),"") -> 
C113: 10. | S113: =IFERROR(AVERAGE(F113:Q113),"") ->  | T113: =IFERROR((U113/U115),"") ->  | U113: =IF(SUM(F113:Q113),SUM(F113:Q113),"") -> 
C115: TOTAL GASTOS | F115: =IF(SUM(F64:F92),SUM(F64:F92),"") ->  | G115: =IF(SUM(G64:G92),SUM(G64:G92),"") ->  | S115: =IFERROR(AVERAGEIF(F115:Q115,">0"),"") ->  | U115: =IF(SUM(U64:U92),SUM(U64:U92),"") -> 
O117: contafacil2013.wordpress.com

Sheet Previsión G.I.
L1: PREVISIÓN DE GASTOS E INGRESOS
E2: AÑO 2013
N4: GASTOS
M5: MENSUALIDADES
E6: CONCEPTOS | I6: 1 | J6: 2 | K6: 3 | L6: 4 | M6: 5 | N6: 6 | O6: 7 | P6: 8 | Q6: 9 | R6: 10 | S6: 11 | T6: 12
I7: ENE. | J7: FEB. | K7: MAR. | L7: ABR. | M7: MAY. | N7: JUN. | O7: JUL. | P7: AGO. | Q7: SEP. | R7: OCT. | S7: NOV. | T7: DIC.
C9: 1. | E9: Ej: Recibo Agua | I9: 60
C11: 2. | E11: Ej: Recibo de Luz | I11: 95
C13: 3. | E13: Ej: Telefonía | I13: 30
C15: 4. | E15: Ej: Gas | I15: 0
C17: 5. | E17: Ej: Comida mes | I17: 760
C19: 6. | H19: 10
C21: 7.
C23: 8.
C25: 9.
C27: 10.
C29: 11.
C31: 12.
C33: 13.
C35: 14.
C37: 15. | E37: GASTOS EXTRA | I37: 50
C39: GASTOS MENSUALES | I39: =IF(SUM(I9:I37),SUM(I9:I37),"") -> 995 | J39: =IF(SUM(J9:J37),SUM(J9:J37),"") ->  | K39: =IF(SUM(K9:K37),SUM(K9:K37),"") ->  | L39: =IF(SUM(L9:L37),SUM(L9:L37),"") ->  | M39: =IF(SUM(M9:M37),SUM(M9:M37),"") ->  | N39: =IF(SUM(N9:N37),SUM(N9:N37),"") -> 
N41: INGRESOS
M42: MENSUALIDADES
E43: CONCEPTOS | I43: 1 | J43: 2 | K43: 3 | L43: 4 | M43: 5 | N43: 6 | O43: 7 | P43: 8 | Q43: 9 | R43: 10 | S43: 11 | T43: 12
I44: ENE. | J44: FEB. | K44: MAR. | L44: ABR. | M44: MAY. | N44: JUN. | O44: JUL. | P44: AGO. | Q44: SEP. | R44: OCT. | S44: NOV. | T44: DIC.
C46: 1. | E46: Nómina | I46: 1100
C48: 2.
C50: 3.
C52: INGRESOS MENSUALES | I52: =IF(SUM(I46:I50),SUM(I46:I50),"") -> 1100 | J52: =IF(SUM(J46:J50),SUM(J46:J50),"") ->  | L52: =IF(SUM(L46:L50),SUM(L46:L50),"") ->  | R52: =IF(SUM(R46:R50),SUM(R46:R50),"") -> 
N54: BALANCE
E55: PREVISIÓN
E56: INGRESOS - GASTOS | I56: =IFERROR(I52-I39,"") -> 105 | J56: =IFERROR(J52-J39,"") ->  | L56: =IFERROR(L52-L39,"") ->  | N56: =IFERROR(N52-N39,"") ->  | R56: =IFERROR(R52-R39,"") ->  | T56: =IFERROR(T52-T39,"") -> 
R58: TOTAL ANUAL : | T58: =IF(SUM(I56:T56),SUM(I56:T56),"") -> 105
C60: CONTABILIDAD REAL
E61: Desfase de Previsión % | I61: =IFERROR((I56-I63)/ABS(I63),"") -> 0.1666666667
C63: INGRESOS - GASTOS | E63: INGRESOS - GASTOS | I63: =IF(I56="","",'Resumen y Balance'!F18) -> 90 | J63: =IF(J56="","",'Resumen y Balance'!G18) ->  | K63: =IF(K56="","",'Resumen y Balance'!H18) ->  | L63: =IF(L56="","",'Resumen y Balance'!I18) ->  | M63: =IF(M56="","",'Resumen y Balance'!J18) ->  | N63: =IF(N56="","",'Resumen y Balance'!K18) ->  | O63: =IF(O56="","",'Resumen y Balance'!L18) ->  | P63: =IF(P56="","",'Resumen y Balance'!M18) ->  | Q63: =IF(Q56="","",'Resumen y Balance'!N18) ->  | R63: =IF(R56="","",'Resumen y Balance'!O18) ->  | S63: =IF(S56="","",'Resumen y Balance'!P18) ->  | T63: =IF(T56="","",'Resumen y Balance'!Q18) -> 
R65: TOTAL ANUAL : | T65: =IF(SUM(I63:T63),SUM(I63:T63),"") -> 90
P68: contafacil2013.wordpress.com

Sheet Resumen y Balance
I1: RESUMEN Y BALANCE DE GASTOS E INGRESOS
C2: 1 | D2: AÑO 2013
J3: MENSUALIDADES | S3: MEDIA | T3: TOTAL
F4: ENE. | G4: FEB. | H4: MAR. | I4: ABR. | J4: MAY. | K4: JUN. | L4: JUL. | M4: AGO. | N4: SEP. | O4: OCT. | P4: NOV. | Q4: DIC. | S4: MENSUAL | T4: ANUAL
D6: GASTOS FIJOS + EXTRAS | F6: ='Detalle Gastos'!F57 -> 363.58 | G6: ='Detalle Gastos'!G57 ->  | H6: ='Detalle Gastos'!H57 ->  | I6: ='Detalle Gastos'!I57 ->  | J6: ='Detalle Gastos'!J57 ->  | K6: ='Detalle Gastos'!K57 ->  | L6: ='Detalle Gastos'!L57 ->  | M6: ='Detalle Gastos'!M57 ->  | N6: ='Detalle Gastos'!N57 ->  | O6: ='Detalle Gastos'!O57 ->  | P6: ='Detalle Gastos'!P57 ->  | Q6: ='Detalle Gastos'!Q57 ->  | S6: =IFERROR(AVERAGEIF(F6:Q6,">0"),"") -> 363.58
D8: GASTOS SIN CONTABILIZAR | F8: =IFERROR(F10+F6,"") -> -676.29 | S8: =IFERROR(AVERAGEIF(F8:Q8,"<0"),"") -> -676.29
C10: * | D10: TOTAL GASTOS | F10: =IFERROR('Contabilidad Mensual'!M8,"") -> -1039.87 | G10: =IFERROR('Contabilidad Mensual'!M12,"") ->  | H10: =IFERROR('Contabilidad Mensual'!M16,"") ->  | I10: =IFERROR('Contabilidad Mensual'!M20,"") ->  | J10: =IFERROR('Contabilidad Mensual'!M24,"") ->  | K10: =IFERROR('Contabilidad Mensual'!M28,"") ->  | L10: =IFERROR('Contabilidad Mensual'!M32,"") ->  | M10: =IFERROR('Contabilidad Mensual'!M36,"") ->  | N10: =IFERROR('Contabilidad Mensual'!M40,"") ->  | O10: =IFERROR('Contabilidad Mensual'!M44,"") ->  | P10: =IFERROR('Contabilidad Mensual'!M48,"") ->  | Q10: =IFERROR('Contabilidad Mensual'!M52,"") ->  | S10: =IFERROR(AVERAGEIF(F10:Q10,"<0"),"") -> -1039.87 | T10: =IF(SUM(F10:Q10),SUM(F10:Q10),"") -> -1039.87
C12: * | D12: INGRESOS | F12: =IFERROR('Contabilidad Mensual'!I8,"") -> 1129.87 | G12: =IFERROR('Contabilidad Mensual'!I12,"") ->  | H12: =IFERROR('Contabilidad Mensual'!I16,"") ->  | I12: =IFERROR('Contabilidad Mensual'!I20,"") ->  | J12: =IFERROR('Contabilidad Mensual'!I24,"") ->  | K12: =IFERROR('Contabilidad Mensual'!I28,"") ->  | L12: =IFERROR('Contabilidad Mensual'!I32,"") ->  | M12: =IFERROR('Contabilidad Mensual'!I36,"") ->  | N12: =IFERROR('Contabilidad Mensual'!I40,"") ->  | O12: =IFERROR('Contabilidad Mensual'!I44,"") ->  | P12: =IFERROR('Contabilidad Mensual'!I48,"") ->  | Q12: =IFERROR('Contabilidad Mensual'!I52,"") ->  | S12: =IFERROR(AVERAGEIF(F12:Q12,">0"),"") -> 1129.87 | T12: =IF(SUM(F12:Q12),SUM(F12:Q12),"") -> 1129.87
D14: BALANCE AHORRO + | F14: =IF(SUMIF('Contabilidad Mensual'!O8,">0"),SUMIF('Contabilidad Mensual'!O8,">0"),"") -> 90 | G14: =IF(SUMIF('Contabilidad Mensual'!O12,">0"),SUMIF('Contabilidad Mensual'!O12,">0"),"") ->  | H14: =IF(SUMIF('Contabilidad Mensual'!O16,">0"),SUMIF('Contabilidad Mensual'!O16,">0"),"") ->  | I14: =IF(SUMIF('Contabilidad Mensual'!O20,">0"),SUMIF('Contabilidad Mensual'!O20,">0"),"") ->  | J14: =IF(SUMIF('Contabilidad Mensual'!O24,">0"),SUMIF('Contabilidad Mensual'!O24,">0"),"") ->  | K14: =IF(SUMIF('Contabilidad Mensual'!O28,">0"),SUMIF('Contabilidad Mensual'!O28,">0"),"") ->  | L14: =IF(SUMIF('Contabilidad Mensual'!O32,">0"),SUMIF('Contabilidad Mensual'!O32,">0"),"") ->  | M14: =IF(SUMIF('Contabilidad Mensual'!O36,">0"),SUMIF('Contabilidad Mensual'!O36,">0"),"") ->  | N14: =IF(SUMIF('Contabilidad Mensual'!O40,">0"),SUMIF('Contabilidad Mensual'!O40,">0"),"") ->  | O14: =IF(SUMIF('Contabilidad Mensual'!O44,">0"),SUMIF('Contabilidad Mensual'!O44,">0"),"") ->  | P14: =IF(SUMIF('Contabilidad Mensual'!O48,">0"),SUMIF('Contabilidad Mensual'!O48,">0"),"") ->  | Q14: =IF(SUMIF('Contabilidad Mensual'!O52,">0"),SUMIF('Contabilidad Mensual'!O52,">0"),"") ->  | S14: =IFERROR(AVERAGEIF(F14:Q14,">0"),"") -> 90
D16: BALANCE AHORRO - | F16: =IF(SUMIF('Contabilidad Mensual'!O8,"<0"),SUMIF('Contabilidad Mensual'!O8,"<0"),"") ->  | G16: =IF(SUMIF('Contabilidad Mensual'!O12,"<0"),SUMIF('Contabilidad Mensual'!O12,"<0"),"") ->  | H16: =IF(SUMIF('Contabilidad Mensual'!O16,"<0"),SUMIF('Contabilidad Mensual'!O16,"<0"),"") ->  | I16: =IF(SUMIF('Contabilidad Mensual'!O20,"<0"),SUMIF('Contabilidad Mensual'!O20,"<0"),"") ->  | J16: =IF(SUMIF('Contabilidad Mensual'!O24,"<0"),SUMIF('Contabilidad Mensual'!O24,"<0"),"") ->  | K16: =IF(SUMIF('Contabilidad Mensual'!O28,"<0"),SUMIF('Contabilidad Mensual'!O28,"<0"),"") ->  | L16: =IF(SUMIF('Contabilidad Mensual'!O32,"<0"),SUMIF('Contabilidad Mensual'!O32,"<0"),"") ->  | M16: =IF(SUMIF('Contabilidad Mensual'!O36,"<0"),SUMIF('Contabilidad Mensual'!O36,"<0"),"") ->  | N16: =IF(SUMIF('Contabilidad Mensual'!O40,"<0"),SUMIF('Contabilidad Mensual'!O40,"<0"),"") ->  | O16: =IF(SUMIF('Contabilidad Mensual'!O44,"<0"),SUMIF('Contabilidad Mensual'!O44,"<0"),"") ->  | P16: =IF(SUMIF('Contabilidad Mensual'!O48,"<0"),SUMIF('Contabilidad Mensual'!O48,"<0"),"") ->  | Q16: =IF(SUMIF('Contabilidad Mensual'!O52,"<0"),SUMIF('Contabilidad Mensual'!O52,"<0"),"") ->  | S16: =IFERROR(AVERAGEIF(F16:Q16,"<0"),"") -> 
C18: * | D18: AHORRO | F18: =IF(SUM(F14,F16),SUM(F14,F16),"") -> 90 | G18: =IF(SUM(G14,G16),SUM(G14,G16),"") ->  | H18: =IF(SUM(H14,H16),SUM(H14,H16),"") ->  | I18: =IF(SUM(I14,I16),SUM(I14,I16),"") ->  | J18: =IF(SUM(J14,J16),SUM(J14,J16),"") ->  | S18: =IFERROR(AVERAGEIF(F18:Q18,"<>0"),"") -> 90 | T18: =IF(SUM(F18:Q18),SUM(F18:Q18),"") -> 90
C21: 2 | D21: AÑO 2014
J22: MENSUALIDADES | S22: MEDIA | T22: TOTAL
F23: ENE. | G23: FEB. | H23: MAR. | I23: ABR. | J23: MAY. | K23: JUN. | L23: JUL. | M23: AGO. | N23: SEP. | O23: OCT. | P23: NOV. | Q23: DIC. | S23: MENSUAL | T23: ANUAL
D25: GASTOS FIJOS + EXTRAS | F25: ='Detalle Gastos'!F115 ->  | G25: ='Detalle Gastos'!G115 ->  | H25: ='Detalle Gastos'!H115 ->  | I25: ='Detalle Gastos'!I115 ->  | J25: ='Detalle Gastos'!J115 ->  | K25: ='Detalle Gastos'!K115 ->  | L25: ='Detalle Gastos'!L115 ->  | M25: ='Detalle Gastos'!M115 ->  | N25: ='Detalle Gastos'!N115 ->  | O25: ='Detalle Gastos'!O115 ->  | P25: ='Detalle Gastos'!P115 ->  | Q25: ='Detalle Gastos'!Q115 ->  | S25: =IFERROR(AVERAGEIF(F25:Q25,">0"),"") -> 
D27: GASTOS SIN CONTABILIZAR | F27: =IFERROR(F29+F25,"") ->  | S27: =IFERROR(AVERAGEIF(F27:Q27,"<0"),"") -> 
C29: * | D29: TOTAL GASTOS | F29: =IFERROR('Contabilidad Mensual'!M60,"") ->  | G29: =IFERROR('Contabilidad Mensual'!M64,"") ->  | H29: =IFERROR('Contabilidad Mensual'!M68,"") ->  | I29: =IFERROR('Contabilidad Mensual'!M72,"") ->  | J29: =IFERROR('Contabilidad Mensual'!M76,"") ->  | K29: =IFERROR('Contabilidad Mensual'!M80,"") ->  | L29: =IFERROR('Contabilidad Mensual'!M84,"") ->  | M29: =IFERROR('Contabilidad Mensual'!M88,"") ->  | N29: =IFERROR('Contabilidad Mensual'!M92,"") ->  | O29: =IFERROR('Contabilidad Mensual'!M96,"") ->  | P29: =IFERROR('Contabilidad Mensual'!M100,"") ->  | Q29: =IFERROR('Contabilidad Mensual'!M104,"") ->  | S29: =IFERROR(AVERAGEIF(F29:Q29,"<0"),"") ->  | T29: =IF(SUM(F29:Q29),SUM(F29:Q29),"") -> 
C31: * | D31: INGRESOS | F31: =IFERROR('Contabilidad Mensual'!I60,"") ->  | G31: =IFERROR('Contabilidad Mensual'!I64,"") ->  | H31: =IFERROR('Contabilidad Mensual'!I68,"") ->  | I31: =IFERROR('Contabilidad Mensual'!I72,"") ->  | J31: =IFERROR('Contabilidad Mensual'!I76,"") ->  | K31: =IFERROR('Contabilidad Mensual'!I80,"") ->  | L31: =IFERROR('Contabilidad Mensual'!I84,"") ->  | M31: =IFERROR('Contabilidad Mensual'!I88,"") ->  | N31: =IFERROR('Contabilidad Mensual'!I92,"") ->  | O31: =IFERROR('Contabilidad Mensual'!I96,"") ->  | P31: =IFERROR('Contabilidad Mensual'!I100,"") ->  | Q31: =IFERROR('Contabilidad Mensual'!I104,"") ->  | S31: =IFERROR(AVERAGEIF(F31:Q31,">0"),"") ->  | T31: =IF(SUM(F31:Q31),SUM(F31:Q31),"") -> 
D33: BALANCE AHORRO + | F33: =IF(SUMIF('Contabilidad Mensual'!O60,">0"),SUMIF('Contabilidad Mensual'!O60,">0"),"") ->  | G33: =IF(SUMIF('Contabilidad Mensual'!O64,">0"),SUMIF('Contabilidad Mensual'!O64,">0"),"") ->  | H33: =IF(SUMIF('Contabilidad Mensual'!O68,">0"),SUMIF('Contabilidad Mensual'!O68,">0"),"") ->  | I33: =IF(SUMIF('Contabilidad Mensual'!O72,">0"),SUMIF('Contabilidad Mensual'!O72,">0"),"") ->  | J33: =IF(SUMIF('Contabilidad Mensual'!O76,">0"),SUMIF('Contabilidad Mensual'!O76,">0"),"") ->  | K33: =IF(SUMIF('Contabilidad Mensual'!O80,">0"),SUMIF('Contabilidad Mensual'!O80,">0"),"") ->  | L33: =IF(SUMIF('Contabilidad Mensual'!O84,">0"),SUMIF('Contabilidad Mensual'!O84,">0"),"") ->  | M33: =IF(SUMIF('Contabilidad Mensual'!O88,">0"),SUMIF('Contabilidad Mensual'!O88,">0"),"") ->  | N33: =IF(SUMIF('Contabilidad Mensual'!O92,">0"),SUMIF('Contabilidad Mensual'!O92,">0"),"") ->  | O33: =IF(SUMIF('Contabilidad Mensual'!O96,">0"),SUMIF('Contabilidad Mensual'!O96,">0"),"") ->  | P33: =IF(SUMIF('Contabilidad Mensual'!O100,">0"),SUMIF('Contabilidad Mensual'!O100,">0"),"") ->  | Q33: =IF(SUMIF('Contabilidad Mensual'!O104,">0"),SUMIF('Contabilidad Mensual'!O104,">0"),"") ->  | S33: =IFERROR(AVERAGEIF(F33:Q33,">0"),"") -> 
D35: BALANCE AHORRO - | F35: =IF(SUMIF('Contabilidad Mensual'!O60,"<0"),SUMIF('Contabilidad Mensual'!O60,"<0"),"") ->  | G35: =IF(SUMIF('Contabilidad Mensual'!O64,"<0"),SUMIF('Contabilidad Mensual'!O64,"<0"),"") ->  | H35: =IF(SUMIF('Contabilidad Mensual'!O68,"<0"),SUMIF('Contabilidad Mensual'!O68,"<0"),"") ->  | I35: =IF(SUMIF('Contabilidad Mensual'!O72,"<0"),SUMIF('Contabilidad Mensual'!O72,"<0"),"") ->  | J35: =IF(SUMIF('Contabilidad Mensual'!O76,"<0"),SUMIF('Contabilidad Mensual'!O76,"<0"),"") ->  | K35: =IF(SUMIF('Contabilidad Mensual'!O80,"<0"),SUMIF('Contabilidad Mensual'!O80,"<0"),"") ->  | L35: =IF(SUMIF('Contabilidad Mensual'!O84,"<0"),SUMIF('Contabilidad Mensual'!O84,"<0"),"") ->  | M35: =IF(SUMIF('Contabilidad Mensual'!O88,"<0"),SUMIF('Contabilidad Mensual'!O88,"<0"),"") ->  | N35: =IF(SUMIF('Contabilidad Mensual'!O92,"<0"),SUMIF('Contabilidad Mensual'!O92,"<0"),"") ->  | O35: =IF(SUMIF('Contabilidad Mensual'!O96,"<0"),SUMIF('Contabilidad Mensual'!O96,"<0"),"") ->  | P35: =IF(SUMIF('Contabilidad Mensual'!O100,"<0"),SUMIF('Contabilidad Mensual'!O100,"<0"),"") ->  | Q35: =IF(SUMIF('Contabilidad Mensual'!O104,"<0"),SUMIF('Contabilidad Mensual'!O104,"<0"),"") ->  | S35: =IFERROR(AVERAGEIF(F35:Q35,"<0"),"") -> 
C37: * | D37: AHORRO | F37: =IF(SUM(F33,F35),SUM(F33,F35),"") ->  | G37: =IF(SUM(G33,G35),SUM(G33,G35),"") ->  | S37: =IFERROR(AVERAGEIF(F37:Q37,"<>0"),"") ->  | T37: =IF(SUM(F37:Q37),SUM(F37:Q37),"") -> 
O39: contafacil2013.wordpress.com

Sheet Estadísticas
M1: ESTADÍSTICAS
B2: 1 | C2: AÑO 2013
E4: ENE. | G4: FEB. | I4: MAR. | K4: ABR. | M4: MAY. | O4: JUN. | Q4: JUL. | S4: AGO. | U4: SEP. | W4: OCT. | Y4: NOV. | AA4: DIC.
C5: Ingresos | E5: ='Resumen y Balance'!F12 -> 1129.87 | G5: ='Resumen y Balance'!G12 ->  | I5: ='Resumen y Balance'!H12 ->  | K5: ='Resumen y Balance'!I12 ->  | M5: ='Resumen y Balance'!J12 ->  | O5: ='Resumen y Balance'!K12 ->  | Q5: ='Resumen y Balance'!L12 ->  | S5: ='Resumen y Balance'!M12 ->  | U5: ='Resumen y Balance'!N12 ->  | W5: ='Resumen y Balance'!O12 ->  | Y5: ='Resumen y Balance'!P12 ->  | AA5: ='Resumen y Balance'!Q12 -> 
C6: Gastos | E6: ='Resumen y Balance'!F10 -> -1039.87 | G6: ='Resumen y Balance'!G10 ->  | I6: ='Resumen y Balance'!H10 ->  | K6: ='Resumen y Balance'!I10 ->  | M6: ='Resumen y Balance'!J10 ->  | O6: ='Resumen y Balance'!K10 ->  | Q6: ='Resumen y Balance'!L10 ->  | S6: ='Resumen y Balance'!M10 ->  | U6: ='Resumen y Balance'!N10 ->  | W6: ='Resumen y Balance'!O10 ->  | Y6: ='Resumen y Balance'!P10 ->  | AA6: ='Resumen y Balance'!Q10 -> 
C7: Ahorro | E7: ='Resumen y Balance'!F18 -> 90 | G7: ='Resumen y Balance'!G18 ->  | I7: ='Resumen y Balance'!H18 ->  | K7: ='Resumen y Balance'!I18 ->  | M7: ='Resumen y Balance'!J18 ->  | O7: ='Resumen y Balance'!K18 ->  | Q7: ='Resumen y Balance'!L18 ->  | S7: ='Resumen y Balance'!M18 ->  | U7: ='Resumen y Balance'!N18 ->  | W7: ='Resumen y Balance'!O18 ->  | Y7: ='Resumen y Balance'!P18 ->  | AA7: ='Resumen y Balance'!Q18 -> 
K22: Máximo | M22: Mínimo | W22: Máximo | Y22: Mínimo
E24: Total Gastos | K24: =IF(MIN('Resumen y Balance'!F10:Q10),MIN('Resumen y Balance'!F10:Q10),"") -> -1039.87 | M24: =IF(MAX('Resumen y Balance'!F10:Q10),MAX('Resumen y Balance'!F10:Q10),"") -> -1039.87 | Q24: Ingresos | W24: =IF(MAX('Resumen y Balance'!F12:Q12),MAX('Resumen y Balance'!F12:Q12),"") -> 1129.87 | Y24: =IF(MIN('Resumen y Balance'!F12:Q12),MIN('Resumen y Balance'!F12:Q12),"") -> 1129.87
E26: Gastos Extras | K26: =IF(MAX('Detalle Gastos'!F34:Q34),MAX('Detalle Gastos'!F34:Q34),"") -> 167.8 | M26: =IF(MIN('Detalle Gastos'!F34:Q34),MIN('Detalle Gastos'!F34:Q34),"") -> 167.8 | Q26: Saldo en cuenta | W26: =IF(MAX('Contabilidad Mensual'!D8:D53),MAX('Contabilidad Mensual'!D8:D53),"") -> 1379 | Y26: =IF(MIN('Contabilidad Mensual'!D8:D53),MIN('Contabilidad Mensual'!D8:D53),"") -> 1289
E28: Gastos Sin Contabilizar | K28: =IF(MIN('Resumen y Balance'!F8:Q8),MIN('Resumen y Balance'!F8:Q8),"") -> -676.29 | M28: =IF(MAX('Resumen y Balance'!F8:Q8),MAX('Resumen y Balance'!F8:Q8),"") -> -676.29 | Q28: Saldo en Cuenta Ahorro | W28: =IF(MAX('Cuenta Ahorro'!R12:R44),MAX('Cuenta Ahorro'!R12:R44),"") -> 1300 | Y28: =IF(MIN('Cuenta Ahorro'!R12:R44),MIN('Cuenta Ahorro'!R12:R44),"") -> 1300
E30: Concepto de Gasto | K30: =IF(MAX('Detalle Gastos'!F6:Q32),MAX('Detalle Gastos'!F6:Q32),"") -> 91.13 | M30: =IF(MIN('Detalle Gastos'!F6:Q32),MIN('Detalle Gastos'!F6:Q32),"") ->  | Q30: Concepto de Ingreso | W30: =IF(MAX('Contabilidad Mensual'!G7:G53),MAX('Contabilidad Mensual'!G7:G53),"") -> 1123 | Y30: =IF(MIN('Contabilidad Mensual'!G7:G53),MIN('Contabilidad Mensual'!G7:G53),"") -> 6.87
E32: Balance Negativo | K32: =IF(MIN('Resumen y Balance'!F16:Q16),MIN('Resumen y Balance'!F16:Q16),"") ->  | M32: =IF(MAX('Resumen y Balance'!F16:Q16),MAX('Resumen y Balance'!F16:Q16),"") ->  | Q32: Balance Positivo | W32: =IF(MAX('Resumen y Balance'!F14:Q14),MAX('Resumen y Balance'!F14:Q14),"") -> 90 | Y32: =IF(MIN('Resumen y Balance'!F14:Q14),MIN('Resumen y Balance'!F14:Q14),"") -> 90
B35: 2 | C35: AÑO 2014
E37: ENE. | G37: FEB. | I37: MAR. | K37: ABR. | M37: MAY. | O37: JUN. | Q37: JUL. | S37: AGO. | U37: SEP. | W37: OCT. | Y37: NOV. | AA37: DIC.
C38: Ingresos | E38: ='Resumen y Balance'!F31 ->  | G38: ='Resumen y Balance'!G31 ->  | I38: ='Resumen y Balance'!H31 ->  | K38: ='Resumen y Balance'!I31 ->  | M38: ='Resumen y Balance'!J31 ->  | O38: ='Resumen y Balance'!K31 ->  | Q38: ='Resumen y Balance'!L31 ->  | S38: ='Resumen y Balance'!M31 ->  | U38: ='Resumen y Balance'!N31 ->  | W38: ='Resumen y Balance'!O31 ->  | Y38: ='Resumen y Balance'!P31 ->  | AA38: ='Resumen y Balance'!Q31 -> 
C39: Gastos | E39: ='Resumen y Balance'!F29 ->  | G39: ='Resumen y Balance'!G29 ->  | I39: ='Resumen y Balance'!H29 ->  | K39: ='Resumen y Balance'!I29 ->  | M39: ='Resumen y Balance'!J29 ->  | O39: ='Resumen y Balance'!K29 ->  | Q39: ='Resumen y Balance'!L29 ->  | S39: ='Resumen y Balance'!M29 ->  | U39: ='Resumen y Balance'!N29 ->  | W39: ='Resumen y Balance'!O29 ->  | Y39: ='Resumen y Balance'!P29 ->  | AA39: ='Resumen y Balance'!Q29 -> 
C40: Ahorro | E40: ='Resumen y Balance'!F37 ->  | G40: ='Resumen y Balance'!G37 ->  | I40: ='Resumen y Balance'!H37 ->  | K40: ='Resumen y Balance'!I37 ->  | M40: ='Resumen y Balance'!J37 ->  | O40: ='Resumen y Balance'!K37 ->  | Q40: ='Resumen y Balance'!L37 ->  | S40: ='Resumen y Balance'!M37 ->  | U40: ='Resumen y Balance'!N37 ->  | W40: ='Resumen y Balance'!O37 ->  | Y40: ='Resumen y Balance'!P37 ->  | AA40: ='Resumen y Balance'!Q37 -> 
K55: Máximo | M55: Mínimo | W55: Máximo | Y55: Mínimo
E57: Total Gastos | K57: =IF(MIN('Resumen y Balance'!F29:Q29),MIN('Resumen y Balance'!F29:Q29),"") ->  | M57: =IF(MAX('Resumen y Balance'!F29:Q29),MAX('Resumen y Balance'!F29:Q29),"") ->  | Q57: Ingresos | W57: =IF(MAX('Resumen y Balance'!F31:Q31),MAX('Resumen y Balance'!F31:Q31),"") ->  | Y57: =IF(MIN('Resumen y Balance'!F31:Q31),MIN('Resumen y Balance'!F31:Q31),"") -> 
E59: Gastos Extras | K59: =IF(MAX('Detalle Gastos'!F92:Q92),MAX('Detalle Gastos'!F92:Q92),"") ->  | M59: =IF(MIN('Detalle Gastos'!F92:Q92),MIN('Detalle Gastos'!F92:Q92),"") ->  | Q59: Saldo en cuenta | W59: =IF(MAX('Contabilidad Mensual'!D60:D105),MAX('Contabilidad Mensual'!D60:D105),"") ->  | Y59: =IF(MIN('Contabilidad Mensual'!D60:D105),MIN('Contabilidad Mensual'!D60:D105),"") -> 
E61: Gastos Sin Contabilizar | K61: =IF(MIN('Resumen y Balance'!F27:Q27),MIN('Resumen y Balance'!F27:Q27),"") ->  | M61: =IF(MAX('Resumen y Balance'!F27:Q27),MAX('Resumen y Balance'!F27:Q27),"") ->  | Q61: Saldo en Cuenta Ahorro | W61: =IF(MAX('Cuenta Ahorro'!R12:R44),MAX('Cuenta Ahorro'!R12:R44),"") -> 1300 | Y61: =IF(MIN('Cuenta Ahorro'!R12:R44),MIN('Cuenta Ahorro'!R12:R44),"") -> 1300
E63: Concepto de Gasto | K63: =IF(MAX('Detalle Gastos'!F64:Q90),MAX('Detalle Gastos'!F64:Q90),"") ->  | M63: =IF(MIN('Detalle Gastos'!F64:Q90),MIN('Detalle Gastos'!F64:Q90),"") ->  | Q63: Concepto de Ingreso | W63: =IF(MAX('Contabilidad Mensual'!G59:G105),MAX('Contabilidad Mensual'!G59:G105),"") ->  | Y63: =IF(MIN('Contabilidad Mensual'!G59:G105),MIN('Contabilidad Mensual'!G59:G105),"") -> 
E65: Balance Negativo | K65: =IF(MIN('Resumen y Balance'!F35:Q35),MIN('Resumen y Balance'!F35:Q35),"") ->  | M65: =IF(MAX('Resumen y Balance'!F35:Q35),MAX('Resumen y Balance'!F35:Q35),"") ->  | Q65: Balance Positivo | W65: =IF(MAX('Resumen y Balance'!F33:Q33),MAX('Resumen y Balance'!F33:Q33),"") ->  | Y65: =IF(MIN('Resumen y Balance'!F33:Q33),MIN('Resumen y Balance'!F33:Q33),"") -> 
Q67: contafacil2013.wordpress.com

Sheet Cuenta Ahorro
O1: CUENTA DE AHORRO
L6: AHORRO | V6: PRESUPUESTADO
D8: REF. | F8: FECHA | H8: HABER | J8: INGRESO | L8: CONCEPTO | O8: CONCEPTO | R8: SALDO
J9: REINTEGRO | L9: INGRESO | O9: REINTEGRO | V9: HABER | W9: PRESUPUESTADO
D12: 1 | F12: 2013-02-12 | H12: 1200 | J12: 100 | L12: Traspaso de Ahorro | R12: =IF(J12<>0,SUM(H12:J12),"") -> 1300 | T12: REF. | V12: CONCEPTO | Y12: VALOR
D14: 2 | H14: =IF(R12<>0,R12,"") -> 1300 | R14: =IF(J14<>0, SUM(H14:J14),"") -> 
D16: 3 | H16: =IF(R14<>0,R14,"") ->  | R16: =IF(J16<>0,SUM(H16:J16),"") ->  | T16: 1 | V16: Compra de móvil | Y16: 300
D18: 4 | R18: =IF(J18<>0, SUM(H18:J18),"") ->  | T18: 2
D20: 5 | R20: =IF(J20<>0, SUM(H20:J20),"") ->  | T20: 3
D22: 6 | R22: =IF(J22<>0, SUM(H22:J22),"") ->  | T22: 4
D24: 7 | R24: =IF(J24<>0, SUM(H24:J24),"") ->  | T24: 5
D26: 8 | R26: =IF(J26<>0, SUM(H26:J26),"") ->  | T26: 6
D28: 9 | R28: =IF(J28<>0, SUM(H28:J28),"") ->  | T28: 7
D30: 10 | T30: 8
D32: 11 | T32: 9
D34: 12 | T34: 10
D36: 13 | T36: 11
D38: 14 | R38: =IF(J38<>0, SUM(H38:J38),"") ->  | T38: 12
D40: 15 | R40: =IF(J40<>0, SUM(H40:J40),"") ->  | T40: 13
D42: 16 | R42: =IF(J42<>0, SUM(H42:J42),"") ->  | T42: 14
D44: 17 | R44: =IF(J44<>0, SUM(H44:J44),"") ->  | V44: TOTAL | W44: PRESUPUESTADO | Y44: =IF(SUMIF(Y16:Y42,">0"),SUMIF(Y16:Y42,">0"),"") -> 300
D46: 18 | R46: =IF(J46<>0, SUM(H46:J46),"") ->  | W46: RESTO LIBRE | Y46: =IFERROR(SUM(R61-Y44),"") -> 1000
D48: 19
D50: 20 | T50: REF. | V50: BLOC DE NOTAS
D52: 21 | T52: 1. | V52: Ej: Ingresar 150 € el próximo mes.
D54: 22 | T54: 2.
D56: 23 | T56: 3.
D58: 24 | T58: 4.
P61: TOTAL | R61: =IFERROR(SUM(J12:J58)+H12,"") -> 1300
R63: contafacil2013.wordpress.com
